Cogmind - Beta 13 @@@ ROGUE MODE // 2024.05.10 @ 22:53:57 Player: McFluffinkins Result: Destroyed by H-55 Commando with Gauss Rifle Performance ------------- Evolutions (1) 500 Regions Visited (5) 1000 Robots Destroyed (29) 145 Value Destroyed (597) 597 Prototype IDs (27) 540 Alien Tech Used (0) 0 Bonus (360) 360 TOTAL SCORE: 3142 Bonus ------- Follower Combat Kills 60 Aligned with FarCom 300 Cogmind --------- Core Integrity 0/400 Matter 185/300 Energy 81/280 System Corruption 0% Temperature Warning (363) Movement Hovering (152) Ox1 Location -9/Exiles Parts ------- > --- POWER (2) -------- Backup Power I Heavy Ion Engine > --- PROPULSION (3) --- Backup Propulsion I Backup Propulsion I Backup Propulsion I > --- UTILITY (2) ------ ECM Suite Hardlight Generator > --- WEAPON (2) ------- Guided Plasma Cannon Mini Grenade Launcher > --- INVENTORY (5) ---- (None) Peak State ------------ > --- POWER ------------ Backup Power I Heavy Ion Engine > --- PROPULSION ------- Backup Propulsion I Backup Propulsion I Backup Propulsion I > --- UTILITY ---------- Huge Storage Unit > --- WEAPON ----------- Guided Plasma Cannon Flak Cannon > --- INVENTORY -------- Lightpack 2.0 Army-in-a-Box Flak Cannon [Rating: 27] Favorites ----------- Power Light Ion Engine Engine Light Ion Engine Propulsion Light Treads Treads Light Treads Hover Unit Backup Propulsion I Utility Huge Storage Unit Device ECM Suite Storage Huge Storage Unit Protection Light Armor Plating Weapon Flak Cannon Energy Gun Heavy EM Pulse Gun Energy Cannon Beam Cannon Ballistic Gun Light Assault Rifle Ballistic Cannon Flak Cannon Launcher Grenade Launcher Slashing Weapon Ripper Build | -11 -10 -10 -9 -9 -9 ------- Run | Yrd Mat Min Mat Min Exi Slots Evolved 2 | . . . 2 . . Power 1 | . . . 1 . . Propulsion 1 | . . . 1 . . Utility . | . . . . . . Weapon . | . . . . . . Parts Attached 47 | 5 9 3 24 . 6 Power 7 | 1 1 2 3 . . Engine 7 | 1 1 2 3 . . Core . | . . . . . . Reactor . | . . . . . . Propulsion 7 | 2 1 . 4 . . Treads 4 | 2 1 . 1 . . Leg . | . . . . . . Wheel . | . . . . . . Hover 3 | . . . 3 . . Flight . | . . . . . . Utility 12 | 1 2 . 5 . 4 Device 7 | . 1 . 3 . 3 Storage 3 | 1 1 . . . 1 Processor . | . . . . . . Hackware . | . . . . . . Protection 2 | . . . 2 . . Artifact . | . . . . . . Weapon 21 | 1 5 1 12 . 2 Energy Gun 6 | 1 1 . 4 . . Energy Cannon 4 | . 1 1 1 . 1 Ballistic Gun 3 | . 2 . 1 . . Ballistic Cannon 5 | . . . 5 . . Launcher 2 | . 1 . . . 1 Special Weapon . | . . . . . . Impact Weapon . | . . . . . . Slashing Weapon 1 | . . . 1 . . Piercing Weapon . | . . . . . . Special Melee Weapon . | . . . . . . Unidentified Prototypes 4 | . . . 4 . . Corrupted Parts 1 | . 1 . . . . System Corruption 2 | . 2 . . . . Parts Lost 8 | . . 1 7 . . Power 2 | . . . 2 . . Propulsion 2 | . . 1 1 . . Utility 2 | . . . 2 . . Weapon 2 | . . . 2 . . Highest Loss Streak 4 | . . 1 4 . . To Critical Strikes . | . . . . . . Average Slot Usage (%) 83 | . 92 85 68 100 99 Engine 17 | . 14 14 17 22 22 Treads 10 | . 28 14 8 . . Hover 8 | . . . . 33 33 Device 8 | . 8 14 2 11 11 Storage 11 | . 14 14 11 11 9 Protection 2 | . . . 6 . . Energy Gun 2 | . 2 . 5 . . Energy Cannon 5 | . 1 13 4 . 1 Ballistic Gun 3 | . 14 . 4 . . Ballistic Cannon 7 | . . . 6 22 18 Launcher 4 | . 8 14 . . 1 Naked Turns . | . . . . . . Heaviest Build 106 | 12 91 93 106 106 106 Greatest Support 40 | 40 40 40 20 18 18 Greatest Overweight (x) 34 | . 2 4 34 5 5 Average Overweight (x) 4 | . 1 3 6 5 4 Largest Inventory Capacity 25 | 8 25 25 25 25 25 Average Capacity 24 | 6 24 25 25 25 21 Most Carried 24 | 5 10 10 23 18 24 Average Carried 12 | 2 6 8 15 17 15 Final Capacity 25 | 8 25 25 25 25 5 Final Carried 18 | 2 9 10 16 18 . Class Distribution -------------------- 100% | Mutant Dominant Class ---------------- Mutant | -10/Materials Mutant | -10/Mines Mutant | -9/Materials Mutant | -9/Mines Mutant | -9/Exiles Resources | -11 -10 -10 -9 -9 -9 ----------- Run | Yrd Mat Min Mat Min Exi Matter Collected 1077 | 209 183 31 567 87 . Remotely . | . . . . . . Salvage Created 748 | . 290 43 415 . . Parts 45 | . 20 2 23 . . Haulers Intercepted 3 | . 1 . 2 . . Recyclers Shooed 4 | . 1 . 3 . . Parts Field Recycled . | . . . . . . Retrieved Matter . | . . . . . . Parts Self-Destructed . | . . . . . . Prevented . | . . . . . . Kills | -11 -10 -10 -9 -9 -9 ------- Run | Yrd Mat Min Mat Min Exi Combat Hostiles Destroyed 17 | . 7 2 8 . . Melee 2 | . . . 2 . . Guns 7 | . 6 . 1 . . Cannons 6 | . 1 . 5 . . AOE 2 | . . 2 . . . Classes Destroyed 8 | . 4 . 4 . . Worker 3 | . . . 3 . . Hauler 3 | . 1 . 2 . . Recycler 1 | . . . 1 . . Mechanic 1 | . . . 1 . . Watcher 4 | . 2 . 2 . . Swarmer 5 | . 3 . 2 . . Grunt 11 | . 4 2 5 . . Sentry 1 | . . . 1 . . Best Kill Streak 4 | . 4 2 4 . . Combat Bots Only 4 | . 4 2 4 . . Max Kills in Single Turn 1 | . 1 1 1 . . Gunslinging . | . . . . . . Exploded 1 | . . 1 . . . Melee 1 | . . . 1 . . Uniques/NPCs Destroyed . | . . . . . . Combat | -11 -10 -10 -9 -9 -9 -------- Run | Yrd Mat Min Mat Min Exi Hostile Shots Fired 223 | . 39 8 157 . 19 Missed 62 | . 8 2 45 . 7 Damage Taken 1999 | . 403 255 1210 . 131 Core 451 | . 12 39 358 . 42 Absorbed by Shields 48 | . . . . . 48 Core Remaining (%) 89 | 100 . 79 . . . Volleys Fired 79 | . 33 5 35 1 5 Largest 2 | . 2 2 2 2 1 Hottest 120 | . 100 50 105 88 120 Shots Fired 150 | . 65 12 66 2 5 Gun 67 | . 57 5 5 . . Cannon 69 | . 5 . 57 2 5 Launcher 14 | . 3 7 4 . . Special . | . . . . . . Kinetic 110 | . 51 5 52 2 . Thermal 19 | . 5 . 9 . 5 Explosive 14 | . 3 7 4 . . Electromagnetic 7 | . 6 . 1 . . Robot Hit Streak 8 | . 8 6 8 . 6 Robot Miss Streak 16 | . 6 1 16 . . Penetration Max . | . . . . . . Secondary Targets . | . . . . . . Shots Hit Robots 101 | . 43 8 45 . 5 Core Hits 67 | . 19 4 44 . . Critical Kills . | . . . . . . Critical Parts Destroyed . | . . . . . . Critical Strikes 2 | . . . 2 . . Sever 2 | . . . 2 . . Melee Attacks 6 | . . . 6 . . Impact . | . . . . . . Slashing 6 | . . . 6 . . Piercing . | . . . . . . Sneak Attacks . | . . . . . . Combat Hostiles . | . . . . . . Follow-up Attacks . | . . . . . . Damage Inflicted 1947 | . 567 235 969 . 176 Guns 419 | . 363 27 29 . . Cannons 885 | . 52 . 657 . 176 Explosions 491 | . 152 202 137 . . Melee 145 | . . . 145 . . Ramming 7 | . . 6 1 . . Kinetic 907 | . 281 27 599 . . Thermal 343 | . 97 . 70 . 176 Explosive 446 | . 107 202 137 . . Electromagnetic 99 | . 82 . 17 . . Impact . | . . . . . . Slashing 145 | . . . 145 . . Piercing . | . . . . . . Highest Corruption 2 | . 2 2 . . . Average Corruption 2 | . 2 2 . . . Corruption Purged . | . . . . . . Corruption Blocked . | . . . . . . Effects 29 | . 8 21 . . . Message Errors 6 | . 2 4 . . . Matter Fused 9 | . 2 7 . . . Heat Flow Errors 4 | . . 4 . . . Energy Discharges 2 | . 2 . . . . Parts Fused 2 | . . 2 . . . Data Loss (minor) 1 | . . 1 . . . Data Loss (major) 1 | . . 1 . . . Misfires 4 | . 2 2 . . . Overload Shots . | . . . . . . Overflow Damage 1 | . . . 1 . . Projectiles 1 | . . . 1 . . Explosions . | . . . . . . Melee . | . . . . . . Knockbacks 12 | . . . 12 . . Impact . | . . . . . . Kinetic 12 | . . . 12 . . Secondary . | . . . . . . Self-Inflicted Damage 215 | . 26 189 . . . Shots 7 | . 1 6 . . . Rammed 3 | . . 2 1 . . Targets Rammed 3 | . . 2 1 . . Kicked . | . . . . . . Crushed . | . . . . . . Highest Temperature 363 | . 156 272 210 39 363 Average Temperature 67 | . 35 109 57 21 206 Received Heat Transfer 590 | . 180 42 357 . 11 Siege Activations . | . . . . . . Robots Corrupted . | . . . . . . Combat Hostiles . | . . . . . . Parts Fried . | . . . . . . Impact Corruptions . | . . . . . . Robots Melted . | . . . . . . Combat Hostiles . | . . . . . . Parts Melted . | . . . . . . Heat Transferred 659 | . 111 . 148 . 400 Parts Sabotaged . | . . . . . . Parts Stolen . | . . . . . . Parts Stripped . | . . . . . . Power Chain Reactions 1 | . 1 . . . . Alert | -11 -10 -10 -9 -9 -9 ------- Run | Yrd Mat Min Mat Min Exi Peak Influence 215 | . 215 69 112 35 . Initial 35 | . . . . 35 . Average 23 | . 46 11 27 12 . Maximum Alert Level 1 | . 1 . . . . Low Security (%) 98 | 100 92 100 100 100 . Level 1 1 | . 7 . . . . Level 2 . | . . . . . . Level 3 . | . . . . . . Level 4 . | . . . . . . Level 5 . | . . . . . . High Security . | . . . . . . Max Security . | . . . . . . Squads Dispatched 2 | . . . 2 . . Investigation . | . . . . . . Extermination . | . . . . . . Reinforcement 2 | . . . 2 . . Assault . | . . . . . . Garrison . | . . . . . . Intercept . | . . . . . . Searches Triggered . | . . . . . . Construction Impeded . | . . . . . . Haulers Reinforced . | . . . . . . Active Scanning Responses . | . . . . . . Cargo Convoy Interrupts . | . . . . . . Stealth | -11 -10 -10 -9 -9 -9 --------- Run | Yrd Mat Min Mat Min Exi Distress Signals 5 | . 3 . 2 . . Communications Jammed . | . . . . . . Distress Signals . | . . . . . . Times Spotted 49 | . 19 2 23 . 5 Peak Tracking Total 6 | . 5 2 6 . 5 Tactical Retreats 5 | . 1 . 4 . . Traps | -11 -10 -10 -9 -9 -9 ------- Run | Yrd Mat Min Mat Min Exi Traps Triggered . | . . . . . . Indirectly . | . . . . . . Trap Hack Attempts . | . . . . . . Triggered . | . . . . . . Disarmed . | . . . . . . Reprogrammed . | . . . . . . Reused . | . . . . . . Traps Extracted . | . . . . . . Installed . | . . . . . . Triggered . | . . . . . . Machines | -11 -10 -10 -9 -9 -9 ---------- Run | Yrd Mat Min Mat Min Exi Machines Disabled 1 | . 1 . . . . Max in Single Turn 1 | . 1 . . . . Machines Repaired . | . . . . . . Machines Dismantled . | . . . . . . Machines Sabotaged . | . . . . . . Overloaded Fab Kills . | . . . . . . Hacking | -11 -10 -10 -9 -9 -9 --------- Run | Yrd Mat Min Mat Min Exi Machines Accessed 3 | . 1 . 1 . 1 Terminals 1 | . . . 1 . . Fabricators . | . . . . . . Repair Stations . | . . . . . . Recycling Units 1 | . 1 . . . . Scanalyzers . | . . . . . . Garrison Access . | . . . . . . Total Hacks 14 | . 11 . 2 . 1 Successful 9 | . 7 . 1 . 1 Failed 5 | . 4 . 1 . . Catastrophic . | . . . . . . Database Lockouts . | . . . . . . Manual 1 | . . . . . 1 Terminals 2 | . . . 2 . . Fabricators . | . . . . . . Repair Stations . | . . . . . . Recycling Units 11 | . 11 . . . . Scanalyzers . | . . . . . . Garrison Access . | . . . . . . Terminal Hacks 2 | . . . 1 . 1 Robot Analysis 1 | . . . 1 . . Derelict Proto ID Bank 1 | . . . . . 1 Fabricator Hacks . | . . . . . . Repair Station Hacks . | . . . . . . Recycling Unit Hacks 7 | . 7 . . . . Report Inventory 1 | . 1 . . . . Retrieve Matter 6 | . 6 . . . . Scanalyzer . | . . . . . . Garrison Access Hacks . | . . . . . . Unauthorized Hacks . | . . . . . . Terminals . | . . . . . . Fabricators . | . . . . . . Repair Stations . | . . . . . . Recycling Units . | . . . . . . Scanalyzers . | . . . . . . Garrison Access . | . . . . . . Data Cores Recovered . | . . . . . . Used . | . . . . . . Hacking Detections 2 | . 1 . 1 . . Full Trace Events 1 | . 1 . . . . Feedback Events . | . . . . . . Feedback Blocked . | . . . . . . Robot Schematics Acquired . | . . . . . . Robots Built . | . . . . . . Authchips . | . . . . . . Time . | . . . . . . Total Robot Build Rating . | . . . . . . Part Schematics Acquired . | . . . . . . Parts Built . | . . . . . . Authchips . | . . . . . . Time . | . . . . . . Total Part Build Rating . | . . . . . . Parts Repaired . | . . . . . . Time . | . . . . . . Parts Recycled . | . . . . . . Recycled Matter . | . . . . . . Retrieved Matter . | . . . . . . Retrieved Components . | . . . . . . Parts Scanalyzed . | . . . . . . Part Schematics Acquired . | . . . . . . Parts Damaged . | . . . . . . Bothacking | -11 -10 -10 -9 -9 -9 ------------ Run | Yrd Mat Min Mat Min Exi Used RIF Installer . | . . . . . . Robots Hacked . | . . . . . . Non-combat . | . . . . . . Combat . | . . . . . . Robot Hacks Applied . | . . . . . . Relay Couplers Released . | . . . . . . Fabnet Peak Effective % . | . . . . . . Robots Rewired . | . . . . . . Allies Hacked . | . . . . . . Hacks Repelled . | . . . . . . Allies | -11 -10 -10 -9 -9 -9 -------- Run | Yrd Mat Min Mat Min Exi Total Allies 1 | . . 1 . . . Largest Group 1 | . . 1 1 . . Highest-Rated Group 31 | . . 31 31 . . Highest-Rated Ally 31 | . . 31 31 . . Total Orders . | . . . . . . Ally Attacks 10 | . . . 10 . . Total Damage 146 | . . . 146 . . Kills 3 | . . . 3 . . Allies Corrupted . | . . . . . . Allies Melted . | . . . . . . Intel | -11 -10 -10 -9 -9 -9 ------- Run | Yrd Mat Min Mat Min Exi Robot Analysis Total 1 | . . . 1 . . Derelict Logs Recovered 4 | . . 3 . 1 . Drone Launches . | . . . . . . Drone Recoveries . | . . . . . . Exploration | -11 -10 -10 -9 -9 -9 ------------- Run | Yrd Mat Min Mat Min Exi Turns Passed 8220 | 57 1203 1970 2952 1110 928 Spaces Moved 1736 | 44 354 415 481 235 207 Core 60 | 23 . . 37 . . Treads 1226 | 21 354 415 436 . . Legs . | . . . . . . Wheels . | . . . . . . Hover 450 | . . . 8 235 207 Flight . | . . . . . . Fastest Speed 50 | 50 160 320 472 472 152 Average Speed 447 | 102 306 467 572 472 407 Slowest Speed 1750 | 160 320 480 1750 472 472 Overloaded Moves . | . . . . . . Propulsion Burnouts . | . . . . . . Robots Hopped . | . . . . . . Cave-ins Triggered . | . . . . . . Exploration Rate (%) 48 | 3 55 89 40 64 42 Regions Visited 5 Branch Regions 3 Pre-discovered Areas 1 | . . . . 1 . Known Exits Taken . | . . . . . . Unknown Exits Taken 5 | 1 1 1 1 1 . Scrap Searched 2 | . . 1 . 1 . Spaces Dug . | . . . . . . Terrain Destroyed 115 | . 25 63 27 . . Melee . | . . . . . . Projectile . | . . . . . . AOE 115 | . 25 63 27 . . Terrain Rammed . | . . . . . . Walls Destroyed . | . . . . . . Machines Disabled . | . . . . . . Actions | -11 -10 -10 -9 -9 -9 --------- Run | Yrd Mat Min Mat Min Exi Total 2042 | 56 419 431 607 237 292 Wait 89 | 2 9 . 21 . 57 Move 1731 | 43 353 414 480 234 207 Hop . | . . . . . . Pick Up 61 | 6 12 4 28 2 9 Fast Attach 1 | 1 . . . . . Attach 25 | 4 2 . 14 . 5 Detach . | . . . . . . Swap 21 | . 7 3 10 . 1 Drop 26 | . 3 3 12 . 8 Fire 79 | . 33 5 35 1 5 Melee 6 | . . . 6 . . Ram . | . . . . . . Kick . | . . . . . . Crush 3 | . . 2 1 . . Escape Stasis . | . . . . . . Rewire . | . . . . . . Trap . | . . . . . . Miscellaneous . | . . . . . . Route ------- -11/Scrapyard -10/Materials (discovered 2 exits: *Mat / [*Min]) -10/Mines (discovered 3 exits: *Mat x2 / [*Sub]) -9/Materials -9/Mines -9/Exiles (discovered 1 exit: [*Min]) History --------- Turn | Location | Event 11 | -11/Scrapyard | Discovered new exit (range 15) 58 | -11/Scrapyard | Entered Materials 309 | -10/Materials | Build established: Mutant 793 | -10/Materials | Discovered new exit (range 11) 1055 | -10/Materials | Discovered new exit (range 13) 1158 | -10/Materials | Derelicts attacked the area 1261 | -10/Materials | Entered Mines 1421 | -10/Mines | Learned Materials emergency access door positions 1639 | -10/Mines | A weapon hastily lodged in a ceiling crevice suddenly fell to the ground 1712 | -10/Mines | Learned Materials interactive machine intel 1957 | -10/Mines | Found a damaged Exp. Sensor Array with a note attached 1967 | -10/Mines | Found Prototype Device 2097 | -10/Mines | Discovered new exit (range 5) 2817 | -10/Mines | Learned Materials terminal intel 3100 | -10/Mines | Discovered new exit (range 9) 3134 | -10/Mines | Discovered new exit (range 10) 3142 | -10/Mines | Received a Mining Laser from a helpful Derelict 3231 | -10/Mines | Entered Materials 3231 | -9/Materials | Accompanied by 1 ally 3231 | -9/Materials | Evolved 2 slots: Power x1, Propulsion x1 3233 | -9/Materials | Loaded intel: 18 interactive machine locations 3234 | -9/Materials | Loaded intel: 12 terminal locations 3910 | -9/Materials | Identified Exp. Sensor Array 5528 | -9/Materials | Lost 4 parts (2p1n1u) 5649 | -9/Materials | Discovered new exit (range 13) 5679 | -9/Materials | Core integrity fell below 50% 5689 | -9/Materials | Core integrity fell below 20% 5710 | -9/Materials | Lost 3 parts (1u2w) 6183 | -9/Materials | Entered Mines 7199 | -9/Mines | Learned location of Zion (-7) 7274 | -9/Mines | Deemed a non-threat by the Exiles lab entrance 7274 | -9/Mines | Discovered new exit (range 5) 7293 | -9/Mines | Entered Exiles 7383 | -9/Exiles | Discovered new exit (range 14) 7459 | -9/Exiles | Met 8R-AWN 7525 | -9/Exiles | Met EX-HEX 7671 | -9/Exiles | Met EX-BIN 7728 | -9/Exiles | Aligned with FarCom system 7732 | -9/Exiles | Given EX-Vault access code 7921 | -9/Exiles | Opened EX-Vault 7950 | -9/Exiles | Found Army-in-a-Box 8064 | -9/Exiles | Found Lightpack 2.0 8079 | -9/Exiles | Found Gui. Plasma Cannon 8100 | -9/Exiles | Exiles lab attacked by MAIN.C 8221 | -9/Exiles | Destroyed by H-55 Commando with Gauss Rifle Last Messages --------------- 08083_ Dropped Army-in-a-Box. 08092_ Acquired Imp. Heat Sink. 08094_ Dropped Huge Storage Unit. 08096_ Acquired ECM Suite. 08098_ Dropped Flak Cannon. 08100_ EXILES: Incoming Unaware force detected on approach from Mines. Prepare for evacuation. 08102_ Acquired Mni. Grenade Launcher. 08104_ Dropped Imp. Heat Sink. 08109_ Acquired Hardlight Generator. 08111_ Dropped Flak Cannon. 08135_ EXILES: Lab perimeter alert, evacuate immediately. 08211_ Penetrated by Slug. 08214_ Slug penetrates Wall. 08217_ Penetrated by Slug. 08218_ Slug penetrates Machine. 08218_ Machine disabled. 08221_ Penetrated by Slug. Map ----- +----------------------------------------------------+ | ????????????????????# #??????????????????????? | | ????????????????????# #???###????????????????? | | ????????????????????# #??"""""???????????????? | | ????????????????????# ## """???????????????? | | ????????????????????# X""???????????????? | | ????????????????????# ## """???????????????? | | ??????????????####??# #??"""""???????????????? | | ??????????????"""""?# #???###????????????????? | | ?????????????"""" ## #??????????????????????? | | ????????????#""X" #??????????????????????? | | ????????????#" #??????????????????????? | | ????????????#" ## #??????????????????????? | | ????????????#""""""?# #?#########????????????? | | ?????????????#"###??# #?#"""""""#????????????? | | ????????????????????# #?#"""""""#????????????? | | ????????????????????# #?#"""""""#????????????? | | ???????????????????## ###"" """"#????????????? | | ???????????????????#" """"#????????????? | | ???????????????????# """#????????????? | | ???????????????????# """#????????????? | | ???????????????????#" """#????????????? | | ???????????????????#" """#????????????? | | ???????????????????#" """#????????????? | | ???????????????????## """""???????????? | | ????????????????????# """#????????????? | | ????????????????????#" @ "X" """"????????????? | | ????????????????????#" """ #????????????? | | ????????????????????#" """""""""#????????????? | | ???????????????????##" ###########????????????? | | ??????????????????##"" #??????????????????????? | | ????????????????###"" #??????????????????????? | | ???????????????"""""" g##?????????????????????? | | ?????????????""" " "" ##???##########???????? | | ?????????????""" " #####"""""""""##?????? | | ???????????" " g " """ """"##????? | | ????????? "" " #????? | | ????????? h " """#????? | | ????????? g " "#????? | | ?????????? " "##???? | | ?????????? h ""###?? | | ?????????? """""" """#?? | | ??????????? ######""" "#?? | | ??????????? ""#?????#####""" ##? | | ????????????"""#??????????##""" ## | | ???????????????????????????#"""" # | | ???????????????????????????#"" | | ???????????????????????????"""" | | ??????????????????????????? | | ????????????????????????? | | ????????????????????????? | +----------------------------------------------------+ Best States ------------- Heat Dissipation 42 Energy Generation 18 Energy Capacity 280 Matter Stores 300 Matter Capacity 300 Sight Range 16 Terrain Scan Density 10 ECM Strength 1 Armor Coverage 150 Evasion (%) 40 Recoil Reduction 2 Item Schematics ----------------- None Robot Schematics ------------------ None Fabricated ------------ Nothing Alien Tech Used ----------------- None Achievements -------------- More Dakka Please Challenges ------------ None Game ------ Seed SingularityPoweredComputer Manual? 0 Play Time 00:27:03 Cumulative 7.8 hours Start 2024.05.10 @ 22:26:33 End 2024.05.10 @ 22:53:57 Sessions 1 Manual Loads 0 Difficulty Rogue Special Mode None Game No. 10 Rogue 10 Adventurer 0 Explorer 0 Win Type - Total 0 Types 0/0/0/0/0/0/0/0/0 Lore% 14 Gallery% 15 Achievement% 14 Wizard Run 0 Options --------- Layout 1 ASCII 0 Keyboard 0 Movement Mouse Keybinds 0 Fullscreen 1 Font 32/Terminus Map View 50x35 Zoom Use 0% Tactical HUD 1 Map Filters NONE Filters NONE Steam 1 RUN: 39850a28-fab5-4939-afb7-980cd2080311